Cogmind - Beta 11.1 @@@ ROGUE MODE // 2022.06.05 @ 02:51:59 Player: Ruxi Result: Destroyed by DAS Turret with DAS Cannon Performance ------------- Evolutions (1) 500 Regions Visited (5) 1000 Robots Destroyed (98) 490 Value Destroyed (2057) 2057 Prototype IDs (2) 40 Alien Tech Used (0) 0 Bonus (286) 286 TOTAL SCORE: 4373 Bonus ------- High Alert Combat Kills 286 Cogmind --------- Core Integrity 0/400 Matter 28/300 Energy 100/100 System Corruption 9% Temperature Cool (0) Movement Treading (240) Ox1 Location -9/Exiles Parts ------- > --- POWER (1) -------- (None) > --- PROPULSION (2) --- Improved Treads > --- UTILITY (4) ------ Large Storage Unit > --- WEAPON (2) ------- Rocket Launcher Katana > --- INVENTORY (15) --- Improved Treads Carbon-fiber Leg Makeshift Leg Improved EM Shotgun Autogun Autogun Autogun Gauss Rifle Grenade Launcher Heavy Rocket Launcher Plasma Cutter Peak State ------------ > --- POWER ------------ Reinforced Ion Engine > --- PROPULSION ------- Improved Treads Medium Treads > --- UTILITY ---------- Large Storage Unit Core Shielding Hardened Light Armor Plating High-powered Tractor Beam > --- WEAPON ----------- Gauss Rifle Advanced Assault Cannon > --- INVENTORY -------- Improved Treads Autogun Autogun Autogun Autogun Grenade Launcher Rocket Launcher Rocket Launcher Heavy Rocket Launcher Plasma Cutter Katana [Rating: 24] Favorites ----------- Power Ion Engine Engine Ion Engine Propulsion Light Treads Treads Light Treads Leg Aluminum Leg Utility Core Shielding Device Weight Redist. System Storage Large Storage Unit Hackware Hacking Suite Protection Core Shielding Weapon Assault Rifle Energy Gun Heavy EM Pulse Gun Energy Cannon Light EM Pulse Cannon Ballistic Gun Assault Rifle Ballistic Cannon Advanced Assault Cannon Launcher Rocket Launcher Special Weapon Plasma Cutter Impact Weapon Hammer Slashing Weapon Mining Claw Build | -11 -10 -10 -9 -9 -9 ------- Run | Scr Mat Min Mat Min Exi Slots Evolved 2 | . . . 2 . . Power . | . . . . . . Propulsion . | . . . . . . Utility 2 | . . . 2 . . Weapon . | . . . . . . Parts Attached 147 | . 17 6 100 7 17 Power 9 | . 1 . 6 1 1 Engine 9 | . 1 . 6 1 1 Core . | . . . . . . Reactor . | . . . . . . Propulsion 26 | . 4 2 14 . 6 Treads 24 | . 4 2 13 . 5 Leg 2 | . . . 1 . 1 Wheel . | . . . . . . Hover . | . . . . . . Flight . | . . . . . . Utility 28 | . 5 . 21 2 . Device 7 | . . . 6 1 . Storage 2 | . 2 . . . . Processor . | . . . . . . Hackware 1 | . . . 1 . . Protection 18 | . 3 . 14 1 . Artifact . | . . . . . . Weapon 84 | . 7 4 59 4 10 Energy Gun 24 | . 3 1 20 . . Energy Cannon 1 | . . . 1 . . Ballistic Gun 38 | . 3 2 27 3 3 Ballistic Cannon 2 | . . . . . 2 Launcher 9 | . . . 4 1 4 Special Weapon 1 | . . . 1 . . Impact Weapon 1 | . . . 1 . . Slashing Weapon 8 | . 1 1 5 . 1 Piercing Weapon . | . . . . . . Special Melee Weapon . | . . . . . . Unidentified Prototypes 2 | . . . 2 . . Parts Lost 20 | . 1 1 6 1 11 Power 2 | . . . . . 2 Propulsion 5 | . . . 2 . 3 Utility 8 | . 1 . 3 1 3 Weapon 5 | . . 1 1 . 3 Highest Loss Streak 7 | . 1 1 6 1 7 To Critical Strikes 5 | . . . . . 5 Average Slot Usage (%) 98 | . 98 100 100 99 79 Engine 12 | . 14 14 11 11 9 Treads 24 | . 27 28 21 22 18 Device 3 | . . . 5 10 3 Storage 12 | . 14 14 11 11 11 Hackware 1 | . . . 1 2 . Protection 18 | . 12 14 25 19 12 Energy Gun 7 | . 7 12 6 2 . Ballistic Gun 13 | . 17 9 12 17 17 Slashing Weapon 2 | . 3 5 1 . . Naked Turns . | . . . . . . Heaviest Build 47 | 13 32 32 45 43 47 Greatest Support 52 | 20 40 40 52 52 51 Greatest Overweight (x) 1 | . . . 1 . 1 Average Overweight (x) . | . . . . . . Largest Inventory Capacity 15 | . 15 15 15 15 15 Average Capacity 13 | . 10 15 15 15 15 Most Carried 15 | . 15 15 15 15 14 Average Carried 12 | . 8 14 13 14 10 Final Capacity 15 | 8 15 15 15 15 15 Final Carried 15 | 6 15 15 15 14 11 Class Distribution -------------------- 79% | Mutant 20% | Scavenger-Mutant Dominant Class ---------------- Mutant | -10/Materials Mutant | -10/Mines Scavenger-Mutant | -9/Materials Mutant | -9/Mines Mutant | -9/Exiles Resources | -11 -10 -10 -9 -9 -9 ----------- Run | Scr Mat Min Mat Min Exi Matter Collected 2916 | 200 459 72 1674 325 186 Remotely 289 | . . . . 143 146 Salvage Created 3256 | . 583 167 2090 355 61 Parts 225 | . 52 14 128 31 . Haulers Intercepted 6 | . 2 . 4 . . Recyclers Shooed 3 | . 2 . 1 . . Parts Field Recycled . | . . . . . . Retrieved Matter . | . . . . . . Parts Self-Destructed . | . . . . . . Prevented . | . . . . . . Kills | -11 -10 -10 -9 -9 -9 ------- Run | Scr Mat Min Mat Min Exi Combat Hostiles Destroyed 72 | . 10 5 39 10 8 Melee 2 | . . . 2 . . Guns 53 | . 10 5 30 7 1 Cannons 3 | . . . 2 . 1 AOE 14 | . . . 5 3 6 Classes Destroyed 13 | . 7 . 4 1 1 Worker 11 | . 4 1 4 2 . Builder 2 | . 1 . 1 . . Tunneler 1 | . . . . 1 . Hauler 6 | . 2 . 4 . . Recycler 3 | . 1 . 2 . . Mechanic 1 | . . . 1 . . Operator 1 | . . . 1 . . Watcher 8 | . 3 . 5 . . Swarmer 24 | . 6 3 11 4 . Grunt 29 | . 4 2 17 6 . Brawler 2 | . . . 2 . . Sentry 9 | . . . 9 . . Assembled 7 | . . . . . 7 Best Kill Streak 7 | . 3 3 7 4 7 Combat Bots Only 7 | . 3 3 6 4 7 Max Kills in Single Turn 5 | . 2 1 4 4 5 Gunslinging 1 | . 1 . . . . Exploded 5 | . . . 3 3 5 Melee 1 | . . . 1 . . Uniques/NPCs Destroyed 1 | . . . . . 1 8R-AWN (-9/Exiles) Combat | -11 -10 -10 -9 -9 -9 -------- Run | Scr Mat Min Mat Min Exi Damage Taken 4683 | . 397 187 2213 301 1585 Core 441 | . 18 . 184 36 203 Absorbed by Shields . | . . . . . . Redirected to Shielding 61 | . . . 32 7 22 Regen/Repaired (Parts) 44 | . . . 44 . . Core Remaining (%) 96 | 100 . 92 . . . Volleys Fired 253 | . 53 13 132 24 31 Largest 2 | . 2 2 2 2 2 Hottest 101 | . 45 90 101 78 76 Shots Fired 506 | . 103 25 265 49 64 Gun 476 | . 103 25 253 48 47 Cannon 20 | . . . 6 . 14 Launcher 9 | . . . 5 1 3 Special 1 | . . . 1 . . Kinetic 369 | . 100 4 165 39 61 Thermal 1 | . . . 1 . . Explosive 9 | . . . 5 1 3 Electromagnetic 127 | . 3 21 94 9 . Robot Hit Streak 13 | . 5 9 13 6 8 Robot Miss Streak 7 | . 7 3 6 2 2 Penetration Max . | . . . . . . Secondary Targets 2 | . 1 1 . . . Max Gunslinging Chain 1 | . 1 1 . . . Shots Hit Robots 321 | . 52 16 177 30 46 Core Hits 163 | . 27 7 89 16 24 Critical Kills 2 | . 1 . . 1 . Critical Parts Destroyed . | . . . . . . Critical Strikes 4 | . 1 . 1 1 1 Destroy 3 | . 1 . . 1 1 Corrupt 1 | . . . 1 . . Melee Attacks 106 | . 1 71 34 . . Impact 5 | . . . 5 . . Slashing 101 | . 1 71 29 . . Piercing . | . . . . . . Sneak Attacks 1 | . . . 1 . . Combat Hostiles . | . . . . . . Follow-up Attacks 1 | . . . 1 . . Damage Inflicted 6487 | . 787 259 3593 604 1244 Guns 4770 | . 709 259 2730 461 611 Cannons 444 | . . . 102 . 342 Explosions 1116 | . 78 . 604 143 291 Melee 157 | . . . 157 . . Ramming . | . . . . . . Kinetic 3579 | . 692 28 1548 358 953 Thermal 78 | . 78 . . . . Explosive 1038 | . . . 604 143 291 Electromagnetic 1635 | . 17 231 1284 103 . Impact 88 | . . . 88 . . Slashing 69 | . . . 69 . . Piercing . | . . . . . . Highest Corruption 9 | . . . 9 9 9 Average Corruption 6 | . . . 5 9 9 Corruption Purged . | . . . . . . Corruption Blocked . | . . . . . . Effects 149 | . . . 80 48 21 Message Errors 42 | . . . 21 15 6 Matter Fused 32 | . . . 19 8 5 Heat Flow Errors 16 | . . . 7 7 2 Energy Discharges 20 | . . . 9 9 2 Parts Rejected 1 | . . . 1 . . Data Loss (minor) 13 | . . . 9 1 3 Data Loss (major) 5 | . . . 2 3 . Misfires 14 | . . . 8 3 3 Alerts 1 | . . . 1 . . Weapon Failures 5 | . . . 3 2 . Overload Shots . | . . . . . . Overflow Damage 4 | . . . 4 . . Projectiles . | . . . . . . Explosions . | . . . . . . Melee 4 | . . . 4 . . Knockbacks 6 | . . . . . 6 Impact . | . . . . . . Kinetic 6 | . . . . . 6 Secondary . | . . . . . . Self-Inflicted Damage 206 | . 166 . . 29 11 Shots 4 | . 2 . . 1 1 Rammed . | . . . . . . Targets Rammed . | . . . . . . Kicked . | . . . . . . Crushed . | . . . . . . Highest Temperature 486 | . 6 186 486 328 280 Average Temperature 110 | . 2 71 122 111 75 Received Heat Transfer 1086 | . 72 36 831 147 . Effects 8 | . . . 7 . 1 Shutdowns 2 | . . . 2 . . Energy Bleed 2 | . . . 1 . 1 Interference 1 | . . . 1 . . Matter Decay 2 | . . . 2 . . Damage (minor) 1 | . . . 1 . . Siege Activations . | . . . . . . Robots Corrupted . | . . . . . . Combat Hostiles . | . . . . . . Parts Fried 8 | . . 1 7 . . Impact Corruptions . | . . . . . . Robots Melted . | . . . . . . Combat Hostiles . | . . . . . . Parts Melted 1 | . 1 . . . . Heat Transferred 50 | . 50 . . . . Parts Sabotaged . | . . . . . . Parts Stolen . | . . . . . . Parts Stripped . | . . . . . . Power Chain Reactions . | . . . . . . Missiles Intercepted . | . . . . . . Alert | -11 -10 -10 -9 -9 -9 ------- Run | Scr Mat Min Mat Min Exi Peak Influence 820 | . 289 65 820 457 . Initial 246 | . . 1 . 246 . Average 284 | . 105 12 526 283 . Maximum Alert Level 3 | . 1 . 3 2 . Low Security (%) 53 | . 86 100 18 29 . Level 1 11 | . 13 . 2 58 . Level 2 24 | . . . 55 12 . Level 3 9 | . . . 23 . . Level 4 . | . . . . . . Level 5 . | . . . . . . High Security . | . . . . . . Max Security . | . . . . . . Squads Dispatched 7 | . 1 . 5 1 . Investigation 5 | . 1 . 3 1 . Extermination . | . . . . . . Reinforcement 1 | . . . 1 . . Assault 1 | . . . 1 . . Garrison . | . . . . . . Intercept . | . . . . . . Searches Triggered . | . . . . . . Construction Impeded . | . . . . . . Haulers Reinforced . | . . . . . . Active Scanning Responses . | . . . . . . Cargo Convoy Interrupts . | . . . . . . Stealth | -11 -10 -10 -9 -9 -9 --------- Run | Scr Mat Min Mat Min Exi Distress Signals 2 | . 1 . 1 . . Communications Jammed . | . . . . . . Distress Signals . | . . . . . . Times Spotted 115 | . 22 5 62 14 12 Peak Tracking Total 10 | . 4 3 5 4 10 Tactical Retreats 9 | . 1 . 3 1 4 Traps | -11 -10 -10 -9 -9 -9 ------- Run | Scr Mat Min Mat Min Exi Traps Triggered 5 | . 1 . 4 . . Indirectly . | . . . . . . Trap Hack Attempts . | . . . . . . Triggered . | . . . . . . Disarmed . | . . . . . . Reprogrammed . | . . . . . . Reused . | . . . . . . Traps Extracted . | . . . . . . Installed . | . . . . . . Triggered . | . . . . . . Machines | -11 -10 -10 -9 -9 -9 ---------- Run | Scr Mat Min Mat Min Exi Machines Disabled 9 | . 2 . 3 1 3 Max in Single Turn 2 | . 2 . 1 1 2 Machines Sabotaged . | . . . . . . Garrisons Compromised . | . . . . . . Overloaded Fab Kills . | . . . . . . Hacking | -11 -10 -10 -9 -9 -9 --------- Run | Scr Mat Min Mat Min Exi Machines Accessed 27 | . 10 . 16 1 . Terminals 19 | . 8 . 11 . . Fabricators . | . . . . . . Repair Stations 2 | . 1 . 1 . . Recycling Units 3 | . 1 . 2 . . Scanalyzers 2 | . . . 2 . . Garrison Access . | . . . . . . Total Hacks 81 | . 27 . 53 1 . Successful 41 | . 11 . 29 1 . Failed 40 | . 16 . 24 . . Catastrophic 10 | . 2 . 8 . . Database Lockouts . | . . . . . . Manual 68 | . 26 . 42 . . Terminals 60 | . 23 . 37 . . Fabricators . | . . . . . . Repair Stations 4 | . 2 . 2 . . Recycling Units 10 | . 2 . 8 . . Scanalyzers 6 | . . . 6 . . Garrison Access . | . . . . . . Terminal Hacks 12 | . 2 . 9 1 . Robot Analysis 1 | . . . 1 . . Open Door 1 | . . . . 1 . Branch Access Points 2 | . 1 . 1 . . Emergency Access Points 1 | . . . 1 . . Terminal Index 2 | . 1 . 1 . . Recycling Unit Index 1 | . . . 1 . . Unreport Threat 4 | . . . 4 . . Fabricator Hacks . | . . . . . . Repair Station Hacks 3 | . 1 . 2 . . Scan Component 2 | . 1 . 1 . . Repair 1 | . . . 1 . . Recycling Unit Hacks 1 | . . . 1 . . Report Inventory 1 | . . . 1 . . Scanalyzer 3 | . . . 3 . . Insert Component 2 | . . . 2 . . Analyze 1 | . . . 1 . . Garrison Access Hacks . | . . . . . . Unauthorized Hacks 22 | . 8 . 14 . . Terminals 15 | . 7 . 8 . . Track 3 | . . . 3 . . Assimilate 3 | . 3 . . . . Botnet 7 | . 3 . 4 . . Operators 2 | . 1 . 1 . . Fabricators . | . . . . . . Repair Stations . | . . . . . . Recycling Units 5 | . 1 . 4 . . Monitor 1 | . . . 1 . . Recyclers 1 | . . . 1 . . Mask 3 | . 1 . 2 . . Scanalyzers 2 | . . . 2 . . Extract 2 | . . . 2 . . Garrison Access . | . . . . . . Data Cores Recovered . | . . . . . . Used . | . . . . . . Hacking Detections 23 | . 9 . 14 . . Full Trace Events 1 | . . . 1 . . Feedback Events . | . . . . . . Feedback Blocked . | . . . . . . Robot Schematics Acquired . | . . . . . . Robots Built . | . . . . . . Authchips . | . . . . . . Time . | . . . . . . Total Robot Build Rating . | . . . . . . Part Schematics Acquired 6 | . . . 6 . . Parts Built . | . . . . . . Authchips . | . . . . . . Time . | . . . . . . Total Part Build Rating . | . . . . . . Parts Repaired 1 | . . . 1 . . Time 32 | . . . 32 . . Parts Recycled . | . . . . . . Recycled Matter . | . . . . . . Retrieved Matter . | . . . . . . Retrieved Components . | . . . . . . Parts Scanalyzed 1 | . . . 1 . . Part Schematics Acquired 1 | . . . 1 . . Parts Damaged 1 | . . . 1 . . Bothacking | -11 -10 -10 -9 -9 -9 ------------ Run | Scr Mat Min Mat Min Exi Used RIF Installer . | . . . . . . Robots Hacked . | . . . . . . Non-combat . | . . . . . . Combat . | . . . . . . Robot Hacks Applied . | . . . . . . Relay Couplers Released . | . . . . . . Fabnet Peak Effective % . | . . . . . . Robots Rewired . | . . . . . . Allies Hacked . | . . . . . . Hacks Repelled . | . . . . . . Allies | -11 -10 -10 -9 -9 -9 -------- Run | Scr Mat Min Mat Min Exi Total Allies 3 | . 1 . . 2 . Largest Group 2 | . 1 1 . 2 2 Highest-Rated Group 55 | . 10 10 . 55 55 Highest-Rated Ally 31 | . 10 10 . 31 31 Total Orders . | . . . . . . Ally Attacks . | . . . . . . Total Damage . | . . . . . . Kills . | . . . . . . Allies Corrupted . | . . . . . . Allies Melted . | . . . . . . Intel | -11 -10 -10 -9 -9 -9 ------- Run | Scr Mat Min Mat Min Exi Robot Analysis Total 1 | . . . 1 . . Derelict Logs Recovered 2 | . . 1 . 1 . Drone Launches . | . . . . . . Drone Recoveries . | . . . . . . Exploration | -11 -10 -10 -9 -9 -9 ------------- Run | Scr Mat Min Mat Min Exi Turns Passed 9739 | . 2265 1938 3857 1134 545 Spaces Moved 4548 | 1 1174 798 1739 590 246 Core . | . . . . . . Treads 4515 | . 1142 798 1739 590 246 Legs 33 | 1 32 . . . . Wheels . | . . . . . . Hover . | . . . . . . Flight . | . . . . . . Fastest Speed 120 | 120 120 160 160 160 160 Average Speed 161 | 120 158 160 162 160 173 Slowest Speed 240 | 120 160 160 240 160 240 Overloaded Moves . | . . . . . . Propulsion Burnouts . | . . . . . . Robots Hopped . | . . . . . . Cave-ins Triggered . | . . . . . . Exploration Rate (%) 73 | 2 98 98 98 98 45 Regions Visited 5 Branch Regions 3 Pre-discovered Areas 2 | . . 1 . 1 . Known Exits Taken 2 | . 1 . 1 . . Unknown Exits Taken 3 | 1 . 1 . 1 . Scrap Searched 4 | . . 1 . 3 . Spaces Dug 42 | . 1 28 13 . . Terrain Destroyed 159 | . 32 28 59 12 28 Melee 42 | . 1 28 13 . . Projectile 4 | . . . . . 4 AOE 113 | . 31 . 46 12 24 Terrain Rammed . | . . . . . . Walls Destroyed . | . . . . . . Machines Disabled . | . . . . . . Actions | -11 -10 -10 -9 -9 -9 --------- Run | Scr Mat Min Mat Min Exi Total 6263 | . 1485 1290 2445 742 301 Wait 1008 | . 158 400 337 113 . Move 4543 | . 1173 797 1738 589 246 Hop . | . . . . . . Pick Up 99 | . 43 2 47 4 3 Fast Attach 11 | . 2 . 5 . 4 Attach 18 | . . 1 10 3 4 Detach 2 | . . . 1 . 1 Swap 118 | . 15 5 85 4 9 Drop 106 | . 40 1 57 5 3 Fire 253 | . 53 13 132 24 31 Melee 105 | . 1 71 33 . . Ram . | . . . . . . Kick . | . . . . . . Crush . | . . . . . . Escape Stasis . | . . . . . . Rewire . | . . . . . . Trap . | . . . . . . Miscellaneous . | . . . . . . Route ------- -11/Scrapyard -10/Materials (discovered 4 exits: *Mat x3 / *Min) -10/Mines (discovered 2 exits: *Mat x2) -9/Materials (discovered 4 exits: [*Mat x3] / *Min) -9/Mines (discovered 4 exits: [*Mat x2] / *Exi / [*Zio]) -9/Exiles (discovered 1 exit: [*Min]) History --------- Turn | Location | Event 1 | -11/Scrapyard | Discovered new exit (range 0) 1 | -11/Scrapyard | Entered Materials 209 | -10/Materials | Discovered new exit (range 14) 303 | -10/Materials | Build established: Mutant 960 | -10/Materials | Discovered new exit (range 12) 963 | -10/Materials | Identified exit to Mines 1086 | -10/Materials | Discovered new exit (range 14) 1362 | -10/Materials | Discovered new exit (range 10) 2266 | -10/Materials | Entered Mines 2266 | -10/Mines | Accompanied by 1 ally 2298 | -10/Mines | Discovered new exit (range 12) 2391 | -10/Mines | Learned location of Mines (-9) 2684 | -10/Mines | A weapon hastily lodged in a ceiling crevice suddenly fell to the ground 2801 | -10/Mines | Discovered new exit (range 4) 4204 | -10/Mines | Entered Materials 4204 | -9/Materials | Evolved 2 slots: Utility x2 5194 | -9/Materials | Discovered new exit (range 16) 5390 | -9/Materials | Build established: Scavenger-Mutant 6184 | -9/Materials | Discovered new exit (range 7) 6518 | -9/Materials | Discovered new exit (range 8) 7004 | -9/Materials | First assault squad dispatched 7229 | -9/Materials | Lost 6 parts (2n3u1w) 7406 | -9/Materials | Build established: Mutant 7525 | -9/Materials | Repaired Rnf. Ion Engine? 7818 | -9/Materials | Identified exit to Mines 7868 | -9/Materials | Discovered new exit (range 13) 8061 | -9/Materials | Entered Mines 8067 | -9/Mines | Met a Derelict shopkeep closing up shop 8209 | -9/Mines | A Derelict revealed a hidden shortcut to a safe place 8306 | -9/Mines | Discovered new exit (range 8) 8340 | -9/Mines | Core integrity fell below 50% 8490 | -9/Mines | Received a Rocket Launcher from a helpful Derelict 8510 | -9/Mines | Learned location of Storage (-7) 8615 | -9/Mines | Discovered new exit (range 5) 8663 | -9/Mines | Excavation squad dispatched 8663 | -9/Mines | A large section of the Mines collapsed 9184 | -9/Mines | Deemed a non-threat by the Exiles lab entrance 9186 | -9/Mines | Discovered new exit (range 5) 9195 | -9/Mines | Entered Exiles 9195 | -9/Exiles | Accompanied by 2 allies 9222 | -9/Exiles | Discovered new exit (range 15) 9225 | -9/Exiles | Led the pair of lost Derelicts to a safe place 9264 | -9/Exiles | Met 8R-AWN 9271 | -9/Exiles | Attacked by the Exiles 9322 | -9/Exiles | Destroyed 7 combat bots 9380 | -9/Exiles | Destroyed 8R-AWN 9402 | -9/Exiles | Lost 7 parts (1p2n2u2w) 9730 | -9/Exiles | Core integrity fell below 20% 9740 | -9/Exiles | Destroyed by DAS Turret with DAS Cannon Last Messages --------------- 09483_ Q%NZWN#8:D1OW JHGQT&7= 09512_ System corrupted: FCS attempts to trigger Autogun. 09512_ System corrupted: Autogun misfires. 09516_ Acquired Carbon-fiber Leg. 09530_ UV>|RCRJI:FL,,FE>#W